fUST/lending_fUST_20250920
["ID","MTS","AMOUNT","RATE_DAILY","PERIOD"]
[386446665,1758301594071,-480.0,0.00021101,2]
[386446666,1758301594100,-480.0,0.00021101,2]
[386446667,1758301594128,-666.09,0.00021101,2]
[386446668,1758301594158,-480.0,0.00021101,2]
[386446669,1758301594188,-480.0,0.00021101,2]
[386446670,1758301594216,-480.0,0.00021101,2]
[386446671,1758301594245,-480.0,0.00021101,2]
[386446672,1758301594435,500.0,0.000211,2]
[386446673,1758301594535,-60.70530186,0.00021101,2]
[386446674,1758301594548,-27.83,0.00021101,2]
[386446676,1758301603637,-391.46469814,0.00021101,2]
[386446677,1758301603664,-918.45,0.00021101,2]
[386446678,1758301603693,-480.0,0.00021101,2]
[386446679,1758301603723,-480.0,0.00021101,2]
[386446680,1758301603750,-480.0,0.00021101,2]
[386446681,1758301603778,-480.0,0.00021101,2]
[386446682,1758301603806,-480.0,0.00021101,2]
[386446683,1758301603839,-724.04,0.00021101,2]
[386446684,1758301603871,-480.0,0.00021101,2]
[386446685,1758301604020,-172.10060372,0.00021101,2]
[386446686,1758301604275,500.0,0.000211,2]
[386446687,1758301606461,500.0,0.000211,2]
[386446688,1758301606497,500.0,0.000211,2]
[386446689,1758301606530,500.0,0.000211,2]
[386446690,1758301606570,500.0,0.000211,2]
[386446691,1758301606605,500.0,0.000211,2]
[386446692,1758301606634,500.0,0.000211,2]
[386446693,1758301606667,500.0,0.000211,2]
[386446694,1758301606698,500.0,0.000211,2]
[386446695,1758301606729,500.0,0.000211,2]
[386446696,1758301606759,500.0,0.000211,2]
[386446697,1758301606794,500.0,0.000211,2]
[386446698,1758301606839,500.0,0.000211,2]
[386446699,1758301606876,500.0,0.000211,2]
[386446700,1758301606913,500.0,0.000211,2]
[386446701,1758301606947,500.0,0.000211,2]
[386446702,1758301606984,384.91163317,0.000211,2]
[386446703,1758301607017,239.85918847,0.000211,2]
[386446704,1758301607054,494.8036072,0.000211,2]
[386446705,1758301607088,500.0,0.000211,2]
[386446706,1758301607124,500.0,0.000211,2]
[386446707,1758301607158,387.42006592,0.000211,2]
[386446708,1758301607195,500.0,0.000211,2]
[386446709,1758301607231,250.0,0.000211,2]
[386446710,1758301607265,500.0,0.000211,2]
[386446711,1758301607304,300.0,0.000211,2]
[386446712,1758301607337,506.28694191,0.000211,2]
[386446714,1758301609211,150.0,0.00019352,2]
[386446715,1758301609621,150.0,0.00020274,2]
[386446716,1758301616966,500.0,0.000211,2]
[386446717,1758301617012,500.0,0.000211,2]
[386446718,1758301617070,500.0,0.000211,2]
[386446719,1758301617133,300.0,0.000211,2]
[386446720,1758301617831,500.0,0.000211,2]
[386446721,1758301617859,500.0,0.000211,2]
[386446722,1758301617894,500.0,0.000211,2]
[386446723,1758301617925,500.0,0.000211,2]
[386446724,1758301617950,500.0,0.000211,2]
[386446725,1758301617978,500.0,0.000211,2]
[386446726,1758301618005,500.0,0.000211,2]
[386446727,1758301618034,500.0,0.000211,2]
[386446728,1758301618062,500.0,0.000211,2]
[386446729,1758301618088,512.57993408,0.000211,2]
[386446730,1758301618115,494.8036072,0.000211,2]
[386446731,1758301618142,500.0,0.000211,2]
[386446732,1758301618170,500.0,0.000211,2]
[386446733,1758301618198,500.0,0.000211,2]
[386446734,1758301618231,500.0,0.000211,2]
[386446735,1758301618260,300.0,0.000211,2]
[386446736,1758301618287,392.62645872,0.000211,2]
[386446737,1758301618308,107.37354128,0.000211,2]
[386446738,1758301618339,250.0,0.000211,2]
[386446739,1758301618365,500.0,0.000211,2]
[386446741,1758301622662,300.0,0.000211,2]
[386446742,1758301625786,-307.89939628,0.00021101,2]
[386446743,1758301625815,-480.0,0.00021101,2]
[386446744,1758301625848,-480.0,0.00021101,2]
[386446745,1758301625879,-659.4,0.00021101,2]
[386446746,1758301625908,-480.0,0.00021101,2]
[386446747,1758301625936,-480.0,0.00021101,2]
[386446748,1758301625964,-480.0,0.00021101,2]
[386446749,1758301625993,-337.4334268,0.00021101,2]
[386446750,1758301626023,-480.0,0.00021101,2]
[386446751,1758301626054,-480.85952603,0.00021101,2]
[386446752,1758301626083,-188.82530178,0.00021101,2]
[386446753,1758301630788,480.0,0.000211,2]
[386446754,1758301637176,2037.37,0.000211,2]
[386446756,1758301651198,1406.55,0.000211,2]
[386446757,1758301655874,-291.17469822,0.00021101,2]
[386446758,1758301655905,-480.0,0.00021101,2]
[386446759,1758301655943,-519.86,0.00021101,2]
[386446760,1758301655974,-480.0,0.00021101,2]
[386446761,1758301656006,-480.0,0.00021101,2]
[386446762,1758301656036,-613.96,0.00021101,2]
[386446763,1758301656064,-480.0,0.00021101,2]
[386446764,1758301656092,-480.0,0.00021101,2]
[386446765,1758301656119,-480.0,0.00021101,2]
[386446766,1758301656146,-480.0,0.00021101,2]
[386446767,1758301672097,480.0,0.000211,2]
[386446768,1758301680992,480.0,0.000211,2]
[386446770,1758301684151,480.0,0.000211,2]
[386446771,1758301685928,-480.0,0.00021101,2]
[386446772,1758301685957,-480.0,0.00021101,2]
[386446773,1758301685985,-480.0,0.00021101,2]
[386446774,1758301686017,-1124.12,0.00021101,2]
[386446775,1758301686045,-480.0,0.00021101,2]
[386446776,1758301686076,-480.0,0.00021101,2]
[386446777,1758301686104,-480.0,0.00021101,2]
[386446778,1758301686131,-480.0,0.00021101,2]
[386446779,1758301686160,-480.0,0.00021101,2]
[386446787,1758301696105,480.0,0.000211,2]
[386446788,1758301698604,884.13,0.000211,2]
[386446789,1758301703663,480.0,0.000211,2]
[386446790,1758301714062,-508.5,0.00021101,2]
[386446791,1758301714092,-480.0,0.00021101,2]
[386446792,1758301714121,-480.0,0.00021101,2]
[386446793,1758301714149,-298.22048776,0.00021101,2]
[386446794,1758301714177,-480.0,0.00021101,2]
[386446795,1758301714208,-812.41,0.00021101,2]
[386446796,1758301714236,-480.0,0.00021101,2]
[386446797,1758301714266,-480.0,0.00021101,2]
[386446798,1758301714295,-480.0,0.00021101,2]
[386446799,1758301714323,-480.0,0.00021101,2]
[386446800,1758301717412,792.94,0.000211,2]
[386446801,1758301722113,480.0,0.000211,2]
[386446802,1758301723890,-480.0,0.00021101,2]
[386446803,1758301724056,-480.0,0.00021101,2]
[386446804,1758301724096,-480.0,0.00021101,2]
[386446805,1758301724124,-480.0,0.00021101,2]
[386446806,1758301724152,-480.0,0.00021101,2]
[386446807,1758301724180,-480.0,0.00021101,2]
[386446808,1758301724209,-480.0,0.00021101,2]
[386446809,1758301724238,-490.95,0.00021101,2]
[386446810,1758301724266,-480.0,0.00021101,2]
[386446811,1758301724294,-480.0,0.00021101,2]
[386446812,1758301733288,480.0,0.000211,2]
[386446813,1758301733931,-480.0,0.00021101,2]
[386446814,1758301733960,-480.0,0.00021101,2]
[386446815,1758301733989,-480.0,0.00021101,2]
[386446816,1758301734020,-480.0,0.00021101,2]
[386446817,1758301734049,-480.0,0.00021101,2]
[386446818,1758301734080,-689.82,0.00021102,2]
[386446819,1758301734108,-480.0,0.00021111,2]
[386446820,1758301734137,-490.0,0.00021111,2]
[386446821,1758301734166,-500.0,0.00021111,2]
[386446822,1758301734194,-157.5,0.00021111,2]
[386446823,1758301734225,-55.37,0.00021111,2]
[386446824,1758301739064,480.0,0.000211,2]
[386446825,1758301748979,-480.0,0.00021101,2]
[386446826,1758301749008,-480.0,0.00021101,2]
[386446827,1758301749041,-454.63,0.00021111,2]
[386446828,1758301749071,-432.10060372,0.00021111,2]
[386446829,1758301749101,-297.61680085,0.00021111,2]
[386446830,1758301749131,-192.57993408,0.00021111,2]
[386446831,1758301749160,-300.0,0.00021111,2]
[386446832,1758301749187,-319.99154485,0.00021112,2]
[386446833,1758301749216,-480.0,0.00021112,2]
[386446834,1758301749265,-480.0,0.00021112,2]
[386446835,1758301749435,-363.83362168,0.00021112,2]
[386446836,1758301749465,-480.0,0.00021112,2]
[386446837,1758301750676,480.0,0.000211,2]
[386446838,1758301752047,480.0,0.000211,2]
[386446839,1758301755360,593.11,0.000211,2]
[386446840,1758301756912,480.0,0.000211,2]
[386446841,1758301769472,480.0,0.000211,2]
[386446842,1758301780800,745.44,0.000211,2]
[386446843,1758301786040,480.0,0.000211,2]
[386446844,1758301791109,-480.0,0.00021101,2]
[386446845,1758301791137,-480.0,0.00021101,2]
[386446846,1758301791165,-480.0,0.00021101,2]
[386446847,1758301791196,-1676.59,0.00021101,2]
[386446848,1758301791228,-481.62186975,0.00021101,2]
[386446849,1758301791256,-480.0,0.00021101,2]
[386446850,1758301791285,-480.0,0.00021101,2]
[386446851,1758301791313,-326.4862605,0.00021101,2]
[386446852,1758301802433,300.0,0.000211,2]
[386446854,1758301816124,-693.87,0.00021101,2]
[386446855,1758301816301,-480.0,0.00021101,2]
[386446856,1758301816332,-480.0,0.00021101,2]
[386446857,1758301816360,-480.0,0.00021101,2]
[386446858,1758301816388,-480.0,0.00021101,2]
[386446859,1758301816418,-480.0,0.00021101,2]
[386446860,1758301816446,-480.46311228,0.00021101,2]
[386446861,1758301816474,-480.0,0.00021101,2]
[386446862,1758301816502,-480.0,0.00021101,2]
[386446863,1758301816530,-299.41377544,0.00021101,2]
[386446865,1758301827746,480.0,0.000211,2]
[386446873,1758301831977,-332.51622456,0.00021101,2]
[386446874,1758301831987,-187.11663703,0.00021101,2]
[386446875,1758301831996,-210.0574855,0.00021101,2]
[386446876,1758301832007,-20.556254,0.00021101,2]
[386446877,1758301832016,-509.98991926,0.00021101,2]
[386446878,1758301832026,-319.4599707,0.00021101,2]
[386446879,1758301832037,-160.5400293,0.00021101,2]
[386446880,1758301832047,-480.0,0.00021101,2]
[386446881,1758301832056,-480.0,0.00021101,2]
[386446882,1758301832065,-480.0,0.00021101,2]
[386446883,1758301832075,-480.0,0.00021101,2]
[386446884,1758301832085,-480.0,0.00021101,2]
[386446885,1758301832094,-480.0,0.00021101,2]
[386446886,1758301832104,-480.0,0.00021101,2]
[386446887,1758301832113,-480.46311228,0.00021101,2]
[386446888,1758301832123,-480.0,0.00021112,2]
[386446889,1758301832132,-480.0,0.00021112,2]
[386446890,1758301832142,-480.0,0.00021112,2]
[386446891,1758301832152,-480.0,0.00021112,2]
[386446892,1758301832161,-480.0,0.00021112,2]
[386446893,1758301832171,-480.0,0.00021112,2]
[386446894,1758301832180,-480.0,0.00021112,2]
[386446895,1758301832190,-480.0,0.00021112,2]
[386446896,1758301832199,-480.0,0.00021112,2]
[386446897,1758301832209,-480.0,0.00021112,2]
[386446898,1758301832218,-480.0,0.00021112,2]
[386446899,1758301832227,-480.0,0.00021112,2]
[386446900,1758301832236,-480.0,0.00021112,2]
[386446901,1758301832246,-480.0,0.00021275,2]
[386446902,1758301832255,-480.0,0.00021275,2]
[386446903,1758301832264,-480.0,0.00021275,2]
[386446904,1758301832277,-869.42,0.00021275,2]
[386446905,1758301832286,-480.0,0.00021275,2]
[386446906,1758301832295,-480.0,0.00021275,2]
[386446907,1758301832304,-480.0,0.00021275,2]
[386446908,1758301832313,-480.0,0.00021275,2]
[386446909,1758301832323,-500.0,0.00021275,2]
[386446910,1758301832332,-480.0,0.00021275,2]
[386446911,1758301832342,-40684.29173565,0.00021276,2]
[386446912,1758301832365,-1809.49332446,0.00021276,2]
[386446921,1758301837716,-480.0,0.00021101,2]
[386446922,1758301837726,-480.0,0.00021101,2]
[386446923,1758301837735,-24356.51241806,0.00021276,2]
[386446924,1758301837744,-321.94,0.00021365,3]
[386446925,1758301837754,-482.95,0.00021365,3]
[386446926,1758301837763,-643.88,0.00021366,3]
[386446927,1758301837772,-160.97,0.00021366,3]
[386446928,1758301837911,-464.39683339,0.00021373,2]
[386446929,1758301837927,-480.0,0.00021373,2]
[386446930,1758301837939,-480.0,0.00021373,2]
[386446931,1758301837950,-480.0,0.00021373,2]
[386446932,1758301837962,-480.0,0.00021373,2]
[386446933,1758301837973,-480.0,0.00021373,2]
[386446934,1758301837982,-489.57053068,0.00021374,2]
[386446935,1758301837992,-2037.37,0.00021374,2]
[386446936,1758301838001,-1406.55,0.00021374,2]
[386446937,1758301838011,-480.0,0.00021374,2]
[386446938,1758301838020,-386.99877154,0.00021374,2]
[386446939,1758301838029,-884.13,0.00021374,2]
[386446940,1758301838039,-480.0,0.00021374,2]
[386446941,1758301838048,-792.94,0.00021374,2]
[386446942,1758301838057,-480.0,0.00021374,2]
[386446943,1758301838067,-480.0,0.00021374,2]
[386446944,1758301838076,-480.0,0.00021374,2]
[386446945,1758301838085,-480.0,0.00021374,2]
[386446946,1758301838095,-593.11,0.00021374,2]
[386446947,1758301838104,-480.0,0.00021374,2]
[386446948,1758301838114,-480.0,0.00021374,2]
[386446949,1758301838124,-745.44,0.00021374,2]
[386446950,1758301838134,-480.0,0.00021374,2]
[386446951,1758301838144,-480.0,0.00021374,2]
[386446952,1758301838154,-480.0,0.00021375,2]
[386446953,1758301838163,-501.92,0.00021375,2]
[386446954,1758301838172,-480.0,0.00021375,2]
[386446955,1758301838182,-229.74,0.00021375,2]
[386446956,1758301838192,-480.0,0.00021375,2]
[386446957,1758301838201,-480.0,0.00021375,2]
[386446958,1758301838211,-480.0,0.00021375,2]
[386446959,1758301838221,-514.99,0.00021375,2]
[386446960,1758301838230,-480.0,0.00021375,2]
[386446961,1758301838239,-480.0,0.00021375,2]
[386446962,1758301838249,-480.0,0.00021375,2]
[386446963,1758301838258,-480.0,0.00021375,2]
[386446964,1758301838268,-480.0,0.00021375,2]
[386446965,1758301838278,-480.0,0.00021375,2]
[386446966,1758301838287,-480.0,0.00021375,2]
[386446967,1758301838296,-666.09,0.00021375,2]
[386446968,1758301838306,-480.0,0.00021375,2]
[386446969,1758301838315,-176.54296969,0.00021375,2]
[386446970,1758301838324,-918.45,0.00021375,2]
[386446971,1758301838334,-480.0,0.00021375,2]
[386446972,1758301838343,-496.17165839,0.00021375,2]
[386446973,1758301838352,-480.0,0.00021375,2]
[386446974,1758301838362,-480.0,0.00021375,2]
[386446975,1758301838371,-480.0,0.00021375,2]
[386446976,1758301838380,-480.0,0.00021375,2]
[386446977,1758301838390,-519.86,0.00021375,2]
[386446978,1758301838400,-480.0,0.00021375,2]
[386446979,1758301838410,-480.0,0.00021375,2]
[386446980,1758301838420,-480.0,0.00021375,2]
[386446981,1758301838430,-1124.12,0.00021375,2]
[386446982,1758301838439,-480.0,0.00021375,2]
[386446983,1758301838449,-508.5,0.00021375,2]
[386446984,1758301838458,-480.0,0.00021375,2]
[386446985,1758301838467,-328.87904553,0.00021375,2]
[386446986,1758301838477,-812.41,0.00021375,2]
[386446987,1758301838486,-480.0,0.00021375,2]
[386446988,1758301838496,-480.0,0.00021375,2]
[386446989,1758301838505,-480.0,0.00021375,2]
[386446990,1758301838514,-480.0,0.00021375,2]
[386446991,1758301838524,-480.0,0.00021375,2]
[386446992,1758301838534,-490.95,0.00021375,2]
[386446993,1758301838544,-580.0,0.00021375,2]
[386446994,1758301838553,-480.0,0.00021375,2]
[386446995,1758301838564,-480.0,0.00021375,2]
[386446996,1758301838573,-480.0,0.00021375,2]
[386446997,1758301838582,-480.0,0.00021375,2]
[386446998,1758301838592,-480.0,0.00021375,2]
[386446999,1758301838602,-1676.59,0.00021375,2]
[386447000,1758301838612,-693.87,0.00021375,2]
[386447001,1758301838622,-480.0,0.00021375,2]
[386447002,1758301838632,-480.0,0.00021375,2]
[386447003,1758301838641,-480.0,0.00021375,2]
[386447004,1758301838651,-480.0,0.00021375,2]
[386447005,1758301838662,-631.93,0.00021375,2]
[386447006,1758301838671,-480.0,0.00021375,2]
[386447007,1758301838681,-480.0,0.00021375,2]
[386447008,1758301838691,-3210.69,0.00021376,2]
[386447009,1758301838701,-638.56,0.00021376,2]
[386447010,1758301838711,-1774.2,0.00021376,2]
[386447011,1758301838721,-480.0,0.00021376,2]
[386447012,1758301838730,-7049.34,0.00021376,2]
[386447013,1758301838739,-480.0,0.00021376,2]
[386447014,1758301838749,-877.65,0.00021376,2]
[386447015,1758301838758,-480.0,0.00021376,2]
[386447016,1758301838768,-661.08,0.00021376,2]
[386447017,1758301838778,-480.0,0.00021386,2]
[386447018,1758301838787,-480.0,0.00021386,2]
[386447019,1758301838796,-480.0,0.00021386,2]
[386447020,1758301838806,-480.0,0.00021386,2]
[386447021,1758301838816,-480.0,0.00021386,2]
[386447022,1758301838825,-486.5971959,0.00021549,2]
[386447023,1758301838835,-480.0,0.00021549,2]
[386447024,1758301838845,-480.0,0.00021549,2]
[386447025,1758301838855,-869.42,0.00021549,2]
[386447026,1758301838864,-480.0,0.00021549,2]
[386447027,1758301838873,-480.0,0.00021549,2]
[386447028,1758301838886,-480.0,0.00021549,2]
[386447029,1758301838895,-480.0,0.00021549,2]
[386447030,1758301838905,-860.09,0.00021638,3]
[386447031,1758301838915,-480.0,0.00021647,2]
[386447032,1758301838926,-480.0,0.00021647,2]
[386447033,1758301838935,-480.0,0.00021647,2]
[386447034,1758301838944,-2037.37,0.00021648,2]
[386447035,1758301838953,-1406.55,0.00021648,2]
[386447036,1758301838962,-480.0,0.00021648,2]
[386447037,1758301838971,-884.13,0.00021648,2]
[386447038,1758301838979,-480.0,0.00021648,2]
[386447039,1758301838988,-792.94,0.00021648,2]
[386447040,1758301838998,-480.0,0.00021648,2]
[386447041,1758301839006,-480.0,0.00021648,2]
[386447042,1758301839016,-480.0,0.00021648,2]
[386447043,1758301839025,-480.0,0.00021648,2]
[386447044,1758301839034,-593.11,0.00021648,2]
[386447045,1758301839043,-480.0,0.00021648,2]
[386447046,1758301839052,-480.0,0.00021648,2]
[386447047,1758301839061,-745.44,0.00021648,2]
[386447048,1758301839070,-480.0,0.00021648,2]
[386447049,1758301839080,-480.0,0.00021648,2]
[386447050,1758301839089,-480.0,0.00021649,2]
[386447051,1758301839098,-501.92,0.00021649,2]
[386447052,1758301839107,-480.0,0.00021649,2]
[386447053,1758301839117,-480.0,0.00021649,2]
[386447054,1758301839127,-480.0,0.00021649,2]
[386447055,1758301839136,-480.0,0.00021649,2]
[386447056,1758301839146,-514.99,0.00021649,2]
[386447057,1758301839156,-349.57719492,0.00021649,2]
[386447058,1758301839166,-480.0,0.00021649,2]
[386447059,1758301839176,-480.0,0.00021649,2]
[386447060,1758301839185,-480.0,0.00021649,2]
[386447061,1758301839194,-666.09,0.00021649,2]
[386447062,1758301839204,-918.45,0.00021649,2]
[386447063,1758301839215,-480.0,0.00021649,2]
[386447064,1758301839224,-480.0,0.00021649,2]
[386447065,1758301839235,-480.0,0.00021649,2]
[386447066,1758301839245,-519.86,0.00021649,2]
[386447067,1758301839255,-480.0,0.00021649,2]
[386447068,1758301839264,-1124.12,0.00021649,2]
[386447069,1758301839273,-480.0,0.00021649,2]
[386447070,1758301839283,-508.5,0.00021649,2]
[386447071,1758301839292,-812.41,0.00021649,2]
[386447072,1758301839302,-480.0,0.00021649,2]
[386447073,1758301839311,-480.0,0.00021649,2]
[386447074,1758301839320,-480.0,0.00021649,2]
[386447075,1758301839330,-480.0,0.00021649,2]
[386447077,1758301839339,-480.0,0.00021649,2]
[386447079,1758301839348,-490.95,0.00021649,2]
[386447081,1758301839358,-480.0,0.00021649,2]
[386447083,1758301839367,-480.0,0.00021649,2]
[386447085,1758301839376,-480.0,0.00021649,2]
[386447087,1758301839385,-480.0,0.00021649,2]
[386447089,1758301839395,-480.0,0.00021649,2]
[386447091,1758301839405,-1676.59,0.00021649,2]
[386447092,1758301839414,-693.87,0.00021649,2]
[386447093,1758301839423,-480.0,0.00021649,2]
[386447094,1758301839433,-480.0,0.00021649,2]
[386447096,1758301839442,-631.93,0.00021649,2]
[386447098,1758301839451,-480.0,0.00021649,2]
[386447099,1758301839461,-480.0,0.00021649,2]
[386447100,1758301839470,-3210.69,0.0002165,2]
[386447101,1758301839480,-638.56,0.0002165,2]
[386447102,1758301839489,-1774.2,0.0002165,2]
[386447103,1758301839498,-480.0,0.0002165,2]
[386447104,1758301839508,-7049.34,0.0002165,2]
[386447105,1758301839518,-480.0,0.0002165,2]
[386447106,1758301839527,-877.65,0.0002165,2]
[386447107,1758301839536,-480.0,0.0002165,2]
[386447108,1758301839546,-661.08,0.0002165,2]
[386447109,1758301839556,-480.0,0.0002166,2]
[386447110,1758301839565,-480.0,0.0002166,2]
[386447111,1758301839575,-480.0,0.0002166,2]
[386447112,1758301839584,-480.0,0.0002166,2]
[386447113,1758301839594,-297.32279122,0.0002166,2]
[386447114,1758301839603,-480.0,0.00021823,2]
[386447115,1758301839612,-869.42,0.00021823,2]
[386447116,1758301839622,-517.35235303,0.00021823,2]
[386447117,1758301839631,-480.0,0.00021823,2]
[386447118,1758301839641,-480.0,0.00021823,2]
[386447119,1758301839650,-4822.70066458,0.00021824,2]
[386447120,1758301839659,-480.0,0.00021921,2]
[386447121,1758301839669,-477.04835463,0.00021921,2]
[386447122,1758301839678,-480.0,0.00021921,2]
[386447123,1758301839688,-2037.37,0.00021922,2]
[386447124,1758301839698,-1406.55,0.00021922,2]
[386447125,1758301839708,-480.0,0.00021922,2]
[386447126,1758301839718,-884.13,0.00021922,2]
[386447127,1758301839728,-792.94,0.00021922,2]
[386447128,1758301839738,-480.0,0.00021922,2]
[386447129,1758301839747,-376.47910644,0.00021922,2]
[386447130,1758301839757,-593.11,0.00021922,2]
[386447131,1758301839766,-480.0,0.00021922,2]
[386447132,1758301839776,-480.0,0.00021922,2]
[386447133,1758301839785,-745.44,0.00021922,2]
[386447134,1758301839794,-480.0,0.00021922,2]
[386447135,1758301839804,-480.0,0.00021922,2]
[386447136,1758301839814,-480.0,0.00021923,2]
[386447137,1758301839823,-501.92,0.00021923,2]
[386447138,1758301839833,-480.0,0.00021923,2]
[386447139,1758301839843,-480.0,0.00021923,2]
[386447140,1758301839852,-480.0,0.00021923,2]
[386447141,1758301839862,-425.12,0.00021923,2]
[386447142,1758301839871,-514.99,0.00021923,2]
[386447143,1758301839884,-480.0,0.00021923,2]
[386447144,1758301839895,-480.0,0.00021923,2]
[386447145,1758301839904,-480.0,0.00021923,2]
[386447146,1758301839913,-666.09,0.00021923,2]
[386447147,1758301839923,-918.45,0.00021923,2]
[386447148,1758301839932,-480.0,0.00021923,2]
[386447149,1758301839942,-480.0,0.00021923,2]
[386447150,1758301839952,-519.86,0.00021923,2]
[386447151,1758301839963,-1124.12,0.00021923,2]
[386447152,1758301839973,-480.0,0.00021923,2]
[386447153,1758301839983,-508.5,0.00021923,2]
[386447154,1758301839993,-812.41,0.00021923,2]
[386447155,1758301840003,-480.0,0.00021923,2]
[386447156,1758301840013,-480.0,0.00021923,2]
[386447157,1758301840023,-480.0,0.00021923,2]
[386447158,1758301840032,-480.0,0.00021923,2]
[386447159,1758301840042,-490.95,0.00021923,2]
[386447160,1758301840051,-173.503752,0.00021923,2]
[386447161,1758301840060,-480.0,0.00021923,2]
[386447162,1758301840070,-480.0,0.00021923,2]
[386447163,1758301840079,-480.0,0.00021923,2]
[386447164,1758301840088,-1676.59,0.00021923,2]
[386447165,1758301840098,-615.84913682,0.00021923,2]
[386447166,1758301840107,-693.87,0.00021923,2]
[386447167,1758301840117,-631.93,0.00021923,2]
[386447168,1758301840126,-480.0,0.00021923,2]
[386447169,1758301840135,-480.0,0.00021923,2]
[386447170,1758301840144,-480.0,0.00021923,2]
[386447171,1758301840154,-3210.69,0.00021924,2]
[386447172,1758301840163,-638.56,0.00021924,2]
[386447173,1758301840173,-1774.2,0.00021924,2]
[386447174,1758301840182,-7049.34,0.00021924,2]
[386447175,1758301840192,-480.0,0.00021924,2]
[386447176,1758301840201,-877.65,0.00021924,2]
[386447177,1758301840211,-480.0,0.00021924,2]
[386447178,1758301840221,-661.08,0.00021924,2]
[386447179,1758301840230,-500.62736572,0.00021932,2]
[386447180,1758301840239,-480.0,0.00021934,2]
[386447181,1758301840248,-480.0,0.00021934,2]
[386447182,1758301840257,-480.0,0.00021934,2]
[386447183,1758301840267,-3966.77,0.00022,7]
[386447184,1758301840276,-500.0,0.0002202,2]
[386447185,1758301840285,-502.82538739,0.0002202,2]
[386447186,1758301840295,-500.0,0.00022086,2]
[386447187,1758301840304,-480.0,0.00022097,2]
[386447188,1758301840313,-869.42,0.00022097,2]
[386447189,1758301840323,-480.0,0.00022097,2]
[386447190,1758301840332,-480.0,0.00022097,2]
[386447191,1758301840341,-2611.4786481,0.00022098,2]
[386447192,1758301840351,-500.0,0.00022139,2]
[386447193,1758301840360,-543.03333736,0.00022139,2]
[386447194,1758301840370,-500.0,0.00022139,2]
[386447195,1758301840379,-500.0,0.00022139,2]
[386447196,1758301840388,-501.37998563,0.00022139,2]
[386447197,1758301840397,-500.0,0.00022139,2]
[386447198,1758301840407,-507.20091411,0.00022139,2]
[386447199,1758301840416,-500.0,0.00022139,2]
[386447200,1758301840426,-500.0,0.00022139,2]
[386447201,1758301840435,-500.0,0.00022139,2]
[386447202,1758301840444,-503.17106557,0.00022139,2]
[386447203,1758301840454,-500.0,0.00022139,2]